Cogmind - Beta 13 *** ADVENTURER MODE // 2024.07.24 @ 15:20:24 Player: Jefffff Result: Destroyed by 39-1TG(R) with Subdweller Laser Performance ------------- Evolutions (0) 0 Regions Visited (2) 400 Robots Destroyed (19) 95 Value Destroyed (354) 354 Prototype IDs (0) 0 Alien Tech Used (0) 0 Bonus (0) 0 TOTAL SCORE: 849 Bonus ------- None Cogmind --------- Core Integrity 0/250 Matter 290/300 Energy 80/100 System Corruption 0% Temperature Cool (6) Movement Core (250) Ox4 Location -10/Subcaves Parts ------- > --- POWER (1) -------- (None) > --- PROPULSION (2) --- (None) > --- UTILITY (2) ------ Medium Storage Unit Weapon Shielding > --- WEAPON (2) ------- Hammer > --- INVENTORY (10) --- Visual Processing Unit Sensor Array Signal Interpreter Weapon Shielding EM Pulse Gun EM Pulse Gun Light Assault Rifle Light Assault Rifle Mining Laser Peak State ------------ > --- POWER ------------ Subdweller Power Source > --- PROPULSION ------- Light Treads Light Treads > --- UTILITY ---------- Medium Storage Unit Structural Scanner > --- WEAPON ----------- Hammer Ripper > --- INVENTORY -------- Visual Processing Unit Sensor Array Signal Interpreter Weapon Shielding Weapon Shielding EM Pulse Gun EM Pulse Gun Light Assault Rifle Light Assault Rifle Mining Laser [Rating: 12] Favorites ----------- Power Ion Engine Engine Ion Engine Propulsion Light Treads Treads Light Treads Utility Medium Storage Unit Device Structural Scanner Storage Medium Storage Unit Weapon Light Assault Rifle Energy Gun Medium Laser Ballistic Gun Light Assault Rifle Special Weapon Mining Laser Impact Weapon Hammer Slashing Weapon Ripper Special Melee Weapon Datajack Build | -11 -10 -10 ------- Run | Yrd Mat Sub Slots Evolved . | . . . Power . | . . . Propulsion . | . . . Utility . | . . . Weapon . | . . . Parts Attached 23 | 6 11 6 Power 6 | 1 3 2 Engine 6 | 1 3 2 Core . | . . . Reactor . | . . . Propulsion 2 | 2 . . Treads 2 | 2 . . Leg . | . . . Wheel . | . . . Hover . | . . . Flight . | . . . Utility 7 | 1 5 1 Device 4 | . 4 . Storage 2 | 1 1 . Processor . | . . . Hackware . | . . . Protection 1 | . . 1 Artifact . | . . . Weapon 8 | 2 3 3 Energy Gun 1 | 1 . . Energy Cannon . | . . . Ballistic Gun 3 | 1 2 . Ballistic Cannon . | . . . Launcher . | . . . Special Weapon 1 | . 1 . Impact Weapon 1 | . . 1 Slashing Weapon 1 | . . 1 Piercing Weapon . | . . . Special Melee Weapon 1 | . . 1 Unidentified Prototypes . | . . . Parts Lost 7 | . 1 6 Power 3 | . 1 2 Propulsion 2 | . . 2 Utility 1 | . . 1 Weapon 1 | . . 1 Highest Loss Streak 3 | . 1 3 To Critical Strikes 2 | . . 2 Average Slot Usage (%) 97 | . 98 95 Engine 13 | . 13 11 Treads 27 | . 28 27 Device 12 | . 13 11 Storage 14 | . 14 14 Energy Gun 2 | . 4 . Ballistic Gun 16 | . 22 1 Special Weapon 1 | . 1 . Impact Weapon 3 | . . 12 Slashing Weapon 3 | . . 11 Naked Turns . | . . . Heaviest Build 21 | 13 19 21 Greatest Support 40 | 40 40 40 Greatest Overweight (x) . | . . . Average Overweight (x) . | . . . Largest Inventory Capacity 10 | 8 10 10 Average Capacity 9 | 7 9 10 Most Carried 10 | 5 10 10 Average Carried 9 | 2 9 10 Final Capacity 10 | 8 10 10 Final Carried 10 | 2 10 9 Class Distribution -------------------- 100% | Mutant Dominant Class ---------------- Mutant | -10/Materials Mutant | -10/Subcaves Resources | -11 -10 -10 ----------- Run | Yrd Mat Sub Matter Collected 505 | 250 200 55 Remotely . | . . . Salvage Created 480 | . 371 109 Parts 37 | . 31 6 Haulers Intercepted . | . . . Recyclers Shooed . | . . . Parts Field Recycled . | . . . Retrieved Matter . | . . . Parts Self-Destructed 17 | . . 17 Prevented . | . . . Kills | -11 -10 -10 ------- Run | Yrd Mat Sub Combat Hostiles Destroyed 13 | . 10 3 Melee 3 | . . 3 Guns 10 | . 10 . Classes Destroyed 6 | . 5 1 Worker 2 | . 2 . Builder 1 | . 1 . Watcher 3 | . 3 . Swarmer 7 | . 6 1 Grunt 4 | . 4 . Subdweller 2 | . . 2 Best Kill Streak 4 | . 4 1 Combat Bots Only 3 | . 3 1 Max Kills in Single Turn 1 | . 1 1 Gunslinging . | . . . Exploded . | . . . Melee 1 | . . 1 Uniques/NPCs Destroyed . | . . . Combat | -11 -10 -10 -------- Run | Yrd Mat Sub Hostile Shots Fired 130 | . 58 72 Missed 43 | . 14 29 Damage Taken 860 | . 342 518 Core 258 | . 42 216 Absorbed by Shields . | . . . Ignored by Resistances 255 | . 106 149 Core Remaining (%) 100 | 100 . . Volleys Fired 53 | . 53 . Largest 2 | . 2 . Hottest 100 | . 100 . Shots Fired 103 | . 103 . Gun 100 | . 100 . Cannon . | . . . Launcher . | . . . Special 3 | . 3 . Kinetic 95 | . 95 . Thermal 8 | . 8 . Explosive . | . . . Electromagnetic . | . . . Robot Hit Streak 13 | . 13 . Robot Miss Streak 3 | . 3 . Penetration Max . | . . . Secondary Targets 2 | . 2 . Max Gunslinging Chain 1 | . 1 . Shots Hit Robots 90 | . 80 10 Core Hits 35 | . 32 3 Critical Kills . | . . . Critical Parts Destroyed . | . . . Critical Strikes 1 | . . 1 Sever 1 | . . 1 Melee Attacks 11 | . . 11 Impact 1 | . . 1 Slashing 8 | . . 8 Piercing . | . . . Sneak Attacks . | . . . Combat Hostiles . | . . . Follow-up Attacks . | . . . Damage Inflicted 925 | . 665 260 Guns 665 | . 665 . Cannons . | . . . Explosions . | . . . Melee 260 | . . 260 Ramming . | . . . Kinetic 602 | . 602 . Thermal 63 | . 63 . Explosive . | . . . Electromagnetic . | . . . Impact 32 | . . 32 Slashing 228 | . . 228 Piercing . | . . . Highest Corruption . | . . . Average Corruption . | . . . Corruption Purged . | . . . Corruption Blocked . | . . . Overload Shots . | . . . Overflow Damage . | . . . Projectiles . | . . . Explosions . | . . . Melee . | . . . Knockbacks . | . . . Impact . | . . . Kinetic . | . . . Secondary . | . . . Self-Inflicted Damage . | . . . Shots . | . . . Rammed . | . . . Targets Rammed . | . . . Kicked . | . . . Crushed . | . . . Highest Temperature 126 | . 126 . Average Temperature 42 | . 42 . Received Heat Transfer 234 | . 99 135 Siege Activations . | . . . Robots Corrupted . | . . . Combat Hostiles . | . . . Parts Fried . | . . . Impact Corruptions . | . . . Robots Melted . | . . . Combat Hostiles . | . . . Parts Melted . | . . . Heat Transferred 185 | . 185 . Parts Sabotaged . | . . . Parts Stolen . | . . . Parts Stripped . | . . . Power Chain Reactions . | . . . Alert | -11 -10 -10 ------- Run | Yrd Mat Sub Peak Influence 193 | . 193 . Initial . | . . . Average 40 | . 42 . Maximum Alert Level 1 | . 1 . Low Security (%) 99 | 100 99 . Level 1 . | . . . Level 2 . | . . . Level 3 . | . . . Level 4 . | . . . Level 5 . | . . . High Security . | . . . Max Security . | . . . Squads Dispatched . | . . . Investigation . | . . . Extermination . | . . . Reinforcement . | . . . Assault . | . . . Garrison . | . . . Intercept . | . . . Searches Triggered . | . . . Construction Impeded . | . . . Haulers Reinforced . | . . . Active Scanning Responses . | . . . Cargo Convoy Interrupts . | . . . Stealth | -11 -10 -10 --------- Run | Yrd Mat Sub Distress Signals 1 | . 1 . Communications Jammed . | . . . Distress Signals . | . . . Times Spotted 39 | . 14 25 Peak Tracking Total 4 | . 4 4 Tactical Retreats 2 | . . 2 Traps | -11 -10 -10 ------- Run | Yrd Mat Sub Traps Triggered 2 | . 2 . Indirectly . | . . . Trap Hack Attempts . | . . . Triggered . | . . . Disarmed . | . . . Reprogrammed . | . . . Reused . | . . . Traps Extracted . | . . . Installed . | . . . Triggered . | . . . Machines | -11 -10 -10 ---------- Run | Yrd Mat Sub Machines Disabled . | . . . Max in Single Turn . | . . . Machines Repaired . | . . . Machines Dismantled . | . . . Machines Sabotaged . | . . . Overloaded Fab Kills . | . . . Hacking | -11 -10 -10 --------- Run | Yrd Mat Sub Machines Accessed 6 | . 6 . Terminals 6 | . 6 . Fabricators . | . . . Repair Stations . | . . . Recycling Units . | . . . Scanalyzers . | . . . Garrison Access . | . . . Total Hacks 14 | . 14 . Successful 8 | . 8 . Failed 6 | . 6 . Catastrophic 2 | . 2 . Database Lockouts . | . . . Manual 12 | . 12 . Terminals 14 | . 14 . Fabricators . | . . . Repair Stations . | . . . Recycling Units . | . . . Scanalyzers . | . . . Garrison Access . | . . . Terminal Hacks 2 | . 2 . Part Schematic 1 | . 1 . Terminal Index 1 | . 1 . Fabricator Hacks . | . . . Repair Station Hacks . | . . . Recycling Unit Hacks . | . . . Scanalyzer . | . . . Garrison Access Hacks . | . . . Unauthorized Hacks 6 | . 6 . Terminals 6 | . 6 . Botnet 6 | . 6 . Fabricators . | . . . Repair Stations . | . . . Recycling Units . | . . . Scanalyzers . | . . . Garrison Access . | . . . Data Cores Recovered . | . . . Used . | . . . Hacking Detections 6 | . 6 . Full Trace Events . | . . . Feedback Events . | . . . Feedback Blocked . | . . . Robot Schematics Acquired . | . . . Robots Built . | . . . Authchips . | . . . Time . | . . . Total Robot Build Rating . | . . . Part Schematics Acquired 1 | . 1 . Parts Built . | . . . Authchips . | . . . Time . | . . . Total Part Build Rating . | . . . Parts Repaired . | . . . Time . | . . . Parts Recycled . | . . . Recycled Matter . | . . . Retrieved Matter . | . . . Retrieved Components . | . . . Parts Scanalyzed . | . . . Part Schematics Acquired . | . . . Parts Damaged . | . . . Bothacking | -11 -10 -10 ------------ Run | Yrd Mat Sub Used RIF Installer . | . . . Robots Hacked 1 | . . 1 Non-combat . | . . . Combat 1 | . . 1 Robot Hacks Applied 1 | . . 1 parse_system 1 | . . 1 Relay Couplers Released . | . . . Fabnet Peak Effective % . | . . . Robots Rewired . | . . . Allies Hacked . | . . . Hacks Repelled . | . . . Allies | -11 -10 -10 -------- Run | Yrd Mat Sub Total Allies . | . . . Largest Group . | . . . Highest-Rated Group . | . . . Highest-Rated Ally . | . . . Total Orders . | . . . Ally Attacks . | . . . Total Damage . | . . . Kills . | . . . Allies Corrupted . | . . . Allies Melted . | . . . Intel | -11 -10 -10 ------- Run | Yrd Mat Sub Robot Analysis Total . | . . . Derelict Logs Recovered . | . . . Drone Launches . | . . . Drone Recoveries . | . . . Exploration | -11 -10 -10 ------------- Run | Yrd Mat Sub Turns Passed 1937 | 67 1323 547 Spaces Moved 1063 | 45 705 313 Core 15 | 15 . . Treads 1048 | 30 705 313 Legs . | . . . Wheels . | . . . Hover . | . . . Flight . | . . . Fastest Speed 50 | 50 160 160 Average Speed 158 | 123 160 160 Slowest Speed 160 | 160 160 160 Overloaded Moves . | . . . Propulsion Burnouts . | . . . Robots Hopped . | . . . Cave-ins Triggered . | . . . Exploration Rate (%) 34 | 4 78 20 Regions Visited 2 Branch Regions 1 Pre-discovered Areas . | . . . Known Exits Taken . | . . . Unknown Exits Taken 2 | 1 1 . Scrap Searched 3 | . . 3 Spaces Dug 3 | . 3 . Terrain Destroyed 3 | . 3 . Melee . | . . . Projectile 3 | . 3 . AOE . | . . . Terrain Rammed . | . . . Walls Destroyed . | . . . Machines Disabled . | . . . Actions | -11 -10 -10 --------- Run | Yrd Mat Sub Total 1212 | 56 813 343 Wait 23 | . 12 11 Move 1061 | 44 704 313 Hop . | . . . Pick Up 25 | 6 19 . Fast Attach 10 | 2 5 3 Attach 6 | 4 1 1 Detach . | . . . Swap 7 | . 5 2 Drop 16 | . 14 2 Fire 53 | . 53 . Melee 11 | . . 11 Ram . | . . . Kick . | . . . Crush . | . . . Escape Stasis . | . . . Rewire . | . . . Trap . | . . . Miscellaneous . | . . . Route ------- -11/Scrapyard -10/Materials (discovered 4 exits: [*Mat] / [*Min x2] / [*Sub]) -10/Subcaves (discovered 1 exit: [*Rec]) History --------- Turn | Location | Event 9 | -11/Scrapyard | Discovered new exit (range 14) 68 | -11/Scrapyard | Entered Materials 314 | -10/Materials | Build established: Mutant 423 | -10/Materials | Discovered new exit (range 9) 606 | -10/Materials | Discovered new exit (range 15) 1065 | -10/Materials | Discovered new exit (range 13) 1243 | -10/Materials | Discovered new exit (range 11) 1391 | -10/Materials | Entered Subcaves 1427 | -10/Subcaves | Disturbed a concealed Subdweller 1743 | -10/Subcaves | Discovered new exit (range 13) 1851 | -10/Subcaves | Core integrity fell below 50% 1852 | -10/Subcaves | Shifting Twisted Machinery released Sub. Beam Cannon 1869 | -10/Subcaves | Shifting Twisted Machinery released Humpback 1904 | -10/Subcaves | A swath of the cavern ceiling suddenly collapsed 1921 | -10/Subcaves | A Subdweller sparked back to life 1934 | -10/Subcaves | Core integrity fell below 20% 1938 | -10/Subcaves | Destroyed by 39-1TG(R) with Subdweller Laser Last Messages --------------- 01768_ S-10 Pest Lgt. Ion Engine severed. 01772_ S-10 Pest destroyed. 01774_ Dropped Sub. Power Source. 01775_ Acquired Lgt. Ion Engine. 01842_ YL-ZG9(R) destroyed. 01844_ Acquired 10 matter. 01848_ Structural Scanner destroyed. 01850_ Lgt. Ion Engine destroyed. 01850_ CR-6TR(R) destroyed. Sub. Beam Cannon falls loose from the Twisted Machinery. Humpback falls loose from the Twisted Machinery. A swath of the cavern ceiling suddenly collapses. 01921_ JR-F4F(R) creaks and sparks as it begins to move. 01926_ Critical hit (Destroy). 01926_ Lgt. Treads destroyed. 01937_ Critical hit (Destroy). 01937_ Ripper destroyed. Map ----- +----------------------------------------------------+ | ?????????????????????????????????????????????????? | | ?????????????????????????????????????????????????? | | ?????????????????????????????????????????????????? | | ?????????????????????????????????????????????????? | | ?????????????????????????????????????????????????? | | ?????????????????????????????????????????????????? | | ?????????????????????????????????????????????????? | | ?????????????????????????????????????????????????? | | ?????????????????????????????????????????????????? | | ?????????????????????????????????????????????????? | | ?????????????????????????????????????????????????? | | ?????????????????????????????????????????????????? | | ?????????????????????????????????????????????????? | | ?????????????????????????????????????????????????? | | ?????????????????????????????????????????????????? | | ?????????????????????????????????????????????????? | | ??????????????????????????????# ?????????????????? | | ????????????????????###??????"""?????????????????? | | ????????????????????# ??"? "?????????????????? | | ???????????????????? #?""" " ###?? ??????????? | | ????????????????????? ? """"""# # ???????????? | | ?????????????????????# &? """" ?????????????? | | ????????????????????## ? & " ???????????????? | | ??????????????????#"#" ? #?????????????????? | | ????????????????????" ##R #??????????????????? | | ??????????????????????## @ R #???????????????????? | | ??????????????????????# ##???????????????????? | | ??????????????????????# R#????????????????????? | | ??????????????????????## #????????????????????? | | ???????????????????????# ##???????????????????? | | ???????????????????????# " #???????????????????? | | ???????????????????#?#### "" #???????????????????? | | ????????????????# # # #;; ##???????????????????? | | ?????????????????# """;####????????????????????? | | ?????????????????# ####";"##?????????????????????? | | ???????????????????#??##;## ?????????????????????? | | ???????????????????# ####"##?????????????????????? | | ??????????????????## ###"####??????????????????? | | ??????????????????# #"""""#??????????????????? | | ????????????????????? #"#####??????????????????? | | ????????????????????????## ""##??????????????????? | | ????????????????????????##""#"##?????????????????? | | ?????????????????????????##"# #?????????????????? | | ????????????????????????## #" #?????????????????? | | ????????????????????##### #??? ???????????? | | ????????????????????# #####??? #??????????? | | ????????????????????# ##???### ??????????? | | ????????????????????# #???### ?????? ???? | | ????????????????????# #???## ?????? ?? | | ?????????###????????# #??## ?????? ?? | +----------------------------------------------------+ Best States ------------- Heat Dissipation 25 Energy Generation 15 Energy Capacity 250 Matter Stores 300 Matter Capacity 300 Sight Range 16 Terrain Scan Range 14 Terrain Scan Density 10 Resistance: KI 20 Resistance: TH 20 Resistance: EX 20 Resistance: EM 20 Resistance: I 20 Resistance: S 20 Resistance: P 20 Evasion (%) 50 Recoil Reduction 2 Offensive Hacking 10 Item Schematics ----------------- Huge Storage Unit | -10/Materials | Hacked Robot Schematics ------------------ None Fabricated ------------ Nothing Alien Tech Used ----------------- None Achievements -------------- None Challenges ------------ None Game ------ Seed MetaReinforcedWell Manual? 0 Play Time 00:12:38 Cumulative 74.6 hours Start 2024.07.24 @ 13:20:37 End 2024.07.24 @ 15:20:24 Sessions 1 Manual Loads 0 Difficulty Adventurer Special Mode None Game No. 107 Rogue 0 Adventurer 107 Explorer 0 Win Type - Total 0 Types 0/0/0/0/0/0/0/0/0 Lore% 44 Gallery% 44 Achievement% 32 Wizard Run 0 Options --------- Layout 2 ASCII 0 Keyboard 0 Movement Mouse Keybinds 0 Fullscreen 2 Font 48/Smallcaps Map View 50x44 Zoom Use 0% Tactical HUD 1 Map Filters NONE Filters NONE Steam 1 RUN: 481f6a61-7be6-4c73-bb40-ad720445b5f7